bitfinex/quotes_SOLUSD_20240717
["timestamp","ask_amount","ask_price","bid_price","bid_amount"]
[1721255642796,1.27788398,156.77,156.73,6.3803]
[1721255643003,1.27788398,156.76,156.72,6.3807]
[1721255643405,1.27788398,156.77,156.73,7.65621757]
[1721255643715,7.65728398,156.76,156.71,7.65701834]
[1721255643913,7.65668398,156.77,156.72,6.3804]
[1721255644111,1.27788398,156.77,156.73,7.65621718]
[1721255644420,1.27788398,156.77,156.73,6.3803]
[1721255644816,7.65588398,156.79,156.74,7.65581012]
[1721255645020,1.27788398,156.79,156.75,6.3795]
[1721255645405,7.65578398,156.79,156.74,22.3291]
[1721255645606,7.65578398,156.79,156.75,1.27576312]
[1721255645902,7.65578398,156.79,156.75,7.65526312]
[1721255646109,1.27788398,156.79,156.75,7.65526312]
[1721255646308,12.9819915,156.82,156.75,1.27576312]
[1721255646497,1.27788398,156.81,156.75,1.27576312]
[1721255646697,7.65498398,156.81,156.75,1.27576312]
[1721255646902,6.3776,156.8,156.75,6.3795]
[1721255647309,7.65508398,156.81,156.76,7.65472578]
[1721255647519,6.3772,156.81,156.76,7.65472578]
[1721255647727,20.0,156.8,156.76,7.65472578]
[1721255647900,1.27788398,156.79,156.75,6.3792]
[1721255648105,27.65558398,156.8,156.76,1.27567481]
[1721255648308,1.27788398,156.79,156.75,6.3794]
[1721255648518,7.65578398,156.79,156.74,22.329]
[1721255648730,6.3786,156.78,156.73,6.3803]
[1721255649029,1.27788398,156.77,156.72,16.4301]
[1721255649208,1.27788398,156.79,156.71,15.9526]
[1721255649708,16.84038398,156.79,156.71,15.9526]
[1721255649908,6.38,156.74,156.69,6.3819]
[1721255650116,1.27788398,156.73,156.69,6.3819]
[1721255650423,21.27788398,156.73,156.69,6.3819]
[1721255651115,20.0,156.73,156.69,6.3819]
[1721255651615,20.0,156.73,156.69,1.27622474]
[1721255651813,21.27788398,156.78,156.68,31.1421]
[1721255652123,6.3798,156.75,156.7,6.3816]
[1721255652331,21.27788398,156.74,156.7,6.3816]
[1721255652529,20.0,156.74,156.7,15.9531]
[1721255652720,20.0,156.74,156.71,1.27620671]
[1721255652914,6.3791,156.76,156.71,6.3811]
[1721255653125,21.27788398,156.75,156.71,6.3811]
[1721255653310,21.27788398,156.75,156.71,7.65716488]
[1721255653728,21.27788398,156.75,156.71,7.65716654]
[1721255654406,21.27788398,156.75,156.71,6.3811]
[1721255655636,21.27788398,156.75,156.71,7.65719133]
[1721255656927,1.27788398,156.75,156.71,1.27609133]
[1721255657131,7.88311371,156.78,156.74,6.3796]
[1721255657431,6.3792,156.76,156.71,45.0]
[1721255657624,7.88252577,156.78,156.7,15.9537]
[1721255657625,6.3788,156.77,156.7,15.9537]
[1721255657831,6.3788,156.77,156.72,7.65506525]
[1721255658035,12.98304179,156.78,156.73,6.3803]
[1721255658328,20.0,156.77,156.73,6.3803]
[1721255658633,21.27788398,156.77,156.73,6.3803]
[1721255659611,20.0,156.77,156.73,6.3803]
[1721255660136,21.27788398,156.77,156.73,6.3803]
[1721255660322,20.0,156.77,156.73,6.3803]
[1721255662139,1.27788398,156.76,156.72,6.3807]
[1721255663740,7.65698398,156.76,156.71,6.3811]
[1721255664321,7.65698398,156.76,156.71,22.0311]
[1721255665124,6.3798,156.75,156.7,31.6037]
[1721255665330,27.65798398,156.74,156.69,6.3819]
[1721255665661,1.27788398,156.73,156.69,6.3819]
[1721255666215,7.65828398,156.73,156.67,22.3393]
[1721255666534,20.0,156.72,156.67,15.9569]
[1721255666734,1.27788398,156.71,156.67,15.9569]
[1721255666939,1.27788398,156.71,156.68,6.3822]
[1721255667143,21.27788398,156.72,156.68,6.382]
[1721255667955,1.27788398,156.72,156.68,6.382]
[1721255668247,21.27788398,156.72,156.68,6.382]
[1721255668439,1.27788398,156.72,156.68,6.382]
[1721255668626,21.27788398,156.72,156.68,6.382]
[1721255668825,21.27788398,156.72,156.69,6.3819]
[1721255669251,21.27788398,156.72,156.7,6.3812]
[1721255669626,1.27788398,156.72,156.69,22.3365]
[1721255670221,20.0,156.73,156.7,1.27632743]
[1721255670623,20.0,156.74,156.7,1.27632743]
[1721255670823,20.0,156.74,156.71,6.3809]
[1721255671028,20.0,156.74,156.7,6.3815]
[1721255671029,1.27788398,156.73,156.7,6.3815]
[1721255671231,21.27788398,156.74,156.7,7.65775173]
[1721255671425,21.27788398,156.74,156.7,6.3815]
[1721255671748,1.27788398,156.73,156.7,6.3815]
[1721255672045,21.27788398,156.74,156.7,7.65776512]
[1721255672552,1.27788398,156.73,156.7,6.3815]
[1721255674051,21.27788398,156.74,156.7,6.3815]
[1721255674349,1.27788398,156.73,156.7,6.3815]
[1721255674957,1.27788398,156.73,156.69,22.3365]
[1721255676744,1.27788398,156.73,156.7,6.3815]
[1721255677050,21.27788398,156.74,156.7,6.3815]
[1721255677241,1.27788398,156.73,156.7,6.3815]
[1721255677961,20.0,156.74,156.71,17.22882473]
[1721255678174,20.0,156.75,156.72,6.3806]
[1721255678330,21.27788398,156.75,156.71,22.3337]
[1721255680025,20.0,156.75,156.72,6.3805]
[1721255680227,20.0,156.75,156.72,7.65657672]
[1721255680448,20.0,156.75,156.73,6.3802]
[1721255680658,20.0,156.77,156.73,6.3802]
[1721255681547,20.0,156.77,156.72,1.27607672]
[1721255681548,1.27788398,156.76,156.72,6.3807]
[1721255681953,1.27788398,156.76,156.72,7.65663492]
[1721255682454,7.65698398,156.76,156.72,7.65663492]
[1721255682657,20.0,156.75,156.72,7.65663492]
[1721255686672,1.27788398,156.78,156.74,15.9499]
[1721255686874,1.27788398,156.78,156.74,39.25565862]
[1721255687552,1.27788398,156.78,156.74,23.60565862]
[1721255687757,7.65628398,156.78,156.74,23.60565862]
[1721255687958,7.65628398,156.78,156.74,17.22575862]
[1721255688190,20.0,156.77,156.74,17.22575862]
[1721255689470,26.3788,156.77,156.74,1.27585862]
[1721255689670,7.65738398,156.76,156.71,22.3336]
[1721255689885,6.3796,156.75,156.71,15.9525]
[1721255690058,1.27788398,156.74,156.68,15.65]
[1721255690258,26.6309,156.77,156.66,15.65]
[1721255690259,1.27788398,156.73,156.66,15.65]
[1721255690458,6.3808,156.72,156.67,6.3825]
[1721255690648,6.3804,156.73,156.68,6.3823]
[1721255690852,20.0,156.72,156.68,6.3823]
[1721255691564,1.27788398,156.71,156.68,6.3823]
[1721255691772,1.27788398,156.7,156.67,22.3391]
[1721255692072,1.27788398,156.71,156.67,22.3391]
[1721255692279,1.27788398,156.7,156.67,22.3391]
[1721255692471,1.27788398,156.7,156.64,31.6098]
[1721255692960,1.27788398,156.71,156.67,6.3828]
[1721255693278,1.27788398,156.7,156.66,7.6596376]
[1721255693455,21.27788398,156.7,156.65,6.3835]
[1721255693857,27.65968398,156.7,156.65,6.3835]
[1721255694057,6.382,156.69,156.64,15.9598]
[1721255694253,21.27788398,156.68,156.64,15.9598]
[1721255694453,21.27788398,156.68,156.62,6.3848]
[1721255694454,7.66068398,156.67,156.62,6.3848]
[1721255694660,6.3833,156.66,156.61,22.3478]
[1721255694887,20.0,156.68,156.61,15.9628]
[1721255694888,1.27788398,156.65,156.61,15.9628]
[1721255695060,1.27788398,156.67,156.62,6.3848]
[1721255695379,7.66068398,156.67,156.62,6.3848]
[1721255695690,20.0,156.66,156.62,6.3848]
[1721255695870,1.27788398,156.65,156.62,6.3848]
[1721255696062,1.27788398,156.64,156.61,15.9628]
[1721255696460,6.3833,156.66,156.61,23.6248983]
[1721255696674,21.27788398,156.65,156.61,22.3479]
[1721255696865,1.27788398,156.64,156.61,22.3479]
[1721255697464,1.27788398,156.64,156.61,15.9628]
[1721255698578,1.27788398,156.64,156.59,6.386]
[1721255699079,1.27788398,156.64,156.57,63.5497]
[1721255699080,1.27788398,156.64,156.57,22.3529]
[1721255699293,46.27788398,156.64,156.54,22.3579]
[1721255699460,6.3853,156.61,156.55,6.3873]
[1721255699661,21.27788398,156.6,156.55,6.3873]
[1721255699893,21.27788398,156.6,156.54,15.9702]
[1721255700096,27.66358398,156.6,156.54,15.9702]
[1721255700397,36.58798398,156.6,156.54,15.9702]
[1721255700601,6.3865,156.58,156.52,6.3888]
[1721255700776,20.0,156.57,156.54,6.388]
[1721255701108,1.27788398,156.59,156.54,6.3878]
[1721255701279,21.27788398,156.59,156.54,7.66526165]
[1721255701588,21.27788398,156.59,156.55,6.3876]
[1721255701957,21.27788398,156.59,156.54,7.66554406]
[1721255702386,21.27788398,156.59,156.54,7.66566726]
[1721255702760,6.3865,156.58,156.53,22.3592]
[1721255702991,1.27788398,156.57,156.53,22.3592]
[1721255703236,1.27788398,156.57,156.54,6.388]
[1721255703361,1.27788398,156.57,156.53,15.9709]
[1721255704082,6.3866,156.58,156.53,15.9709]
[1721255704800,20.0,156.57,156.53,15.9709]
[1721255705098,26.3869,156.57,156.53,15.9709]
[1721255705704,26.3869,156.57,156.51,6.3893]
[1721255706004,20.0,156.57,156.52,6.3888]
[1721255706199,20.0,156.58,156.53,6.3883]
[1721255706591,1.27788398,156.57,156.54,6.3881]
[1721255706984,20.0,156.58,156.55,6.3876]
[1721255707187,1.27788398,156.57,156.52,15.9713]
[1721255707883,21.27788398,156.59,156.53,1.2775883]
[1721255708304,6.3865,156.58,156.53,6.3885]
[1721255708485,21.27788398,156.57,156.53,6.3885]
[1721255708699,21.27788398,156.57,156.53,7.66608193]
[1721255708882,20.0,156.57,156.54,6.3879]
[1721255709082,21.27788398,156.59,156.54,6.3879]
[1721255709383,21.27788398,156.59,156.55,6.3876]
[1721255709585,21.27788398,156.59,156.56,6.3873]
[1721255709799,21.27788398,156.59,156.54,15.9694]
[1721255710018,21.27788398,156.59,156.54,23.63456519]
[1721255710310,27.66398398,156.59,156.54,22.3571]
[1721255711711,21.27788398,156.59,156.54,22.3571]
[1721255711907,21.27788398,156.59,156.54,15.9694]
[1721255712215,27.66428398,156.59,156.54,15.9694]
[1721255712713,20.0,156.59,156.55,1.27755328]
[1721255712909,27.66408398,156.59,156.54,15.9694]
[1721255713419,22.0598,156.58,156.46,15.9776]
[1721255713722,66.27788398,156.57,156.44,15.0727]
[1721255713897,66.27788398,156.57,156.45,1.27791326]
[1721255714101,27.66518398,156.57,156.46,1.27774526]
[1721255714310,6.3873,156.56,156.51,6.3891]
[1721255714513,21.27788398,156.55,156.49,7.66785149]
[1721255714715,1.27788398,156.54,156.49,6.3901]
[1721255714920,1.27788398,156.54,156.48,15.9755]
[1721255715215,6.3886,156.53,156.48,22.3659]
[1721255715409,1.27788398,156.52,156.48,22.3659]
[1721255716292,1.27788398,156.52,156.48,15.9755]
[1721255716722,1.27788398,156.52,156.48,22.366]
[1721255716897,1.27788398,156.51,156.48,15.9755]
[1721255717097,26.3886,156.53,156.48,15.9755]
[1721255717098,1.27788398,156.52,156.48,15.9755]
[1721255717298,1.27788398,156.51,156.47,6.3909]
[1721255717717,7.66718398,156.51,156.45,22.371]
[1721255718106,1.27788398,156.51,156.46,6.3913]
[1721255718608,7.66748398,156.51,156.45,15.9795]
[1721255718802,26.3898,156.5,156.45,22.3713]
[1721255719000,7.66808398,156.49,156.45,15.9795]
[1721255719202,1.27788398,156.48,156.43,7.1912628]
[1721255719409,27.66848398,156.48,156.43,0.7990628]
[1721255720003,6.391,156.47,156.43,0.7990628]
[1721255720322,21.27788398,156.46,156.43,0.7990628]
[1721255720497,1.27788398,156.45,156.43,0.7990628]
[1721255720897,7.66968398,156.45,156.43,0.7990628]
[1721255721622,26.3922,156.44,156.43,0.7990628]
[1721255721836,32.5532,156.44,156.43,0.7990628]
[1721255722112,71.161,156.44,156.33,15.72]
[1721255722323,1.27788398,156.43,156.38,6.3946]
[1721255722504,1.27788398,156.42,156.38,6.3946]
[1721255722697,39.14279665,156.44,156.36,1.27884187]
[1721255722698,1.27788398,156.43,156.36,1.27884187]
[1721255722900,39.14239665,156.44,156.36,1.27884187]
[1721255722901,26.161,156.44,156.38,15.9866]
[1721255723209,20.0,156.44,156.4,6.3938]
[1721255723838,20.0,156.44,156.41,6.3933]
[1721255724338,6.5579,156.48,156.42,17.26088763]
[1721255724500,1.27788398,156.47,156.42,15.9823]
[1721255724703,6.58162206,156.46,156.38,15.9858]
[1721255724905,7.66888398,156.47,156.41,6.393]
[1721255725101,6.58174372,156.46,156.42,6.3929]
[1721255725332,6.58174372,156.46,156.43,6.3925]
[1721255725521,1.27788398,156.47,156.42,15.9816]
[1721255725705,1.27788398,156.48,156.43,1.27842469]
[1721255725906,1.27788398,156.48,156.42,22.3743]
[1721255726207,6.3914,156.46,156.41,1.27837078]
[1721255726418,6.3927,156.43,156.36,22.4098]
[1721255726621,1.27788398,156.45,156.37,7.6736906]
[1721255726622,1.27788398,156.42,156.37,7.6736906]
[1721255726800,6.3926,156.43,156.38,6.3945]
[1721255727005,6.3926,156.43,156.35,15.989]
[1721255727006,1.27788398,156.42,156.36,6.3953]
[1721255727231,6.3935,156.41,156.36,6.3953]
[1721255727424,16.2484,156.43,156.36,7.67432585]
[1721255727425,1.27788398,156.4,156.36,7.67432585]
[1721255727630,21.27788398,156.42,156.38,6.3946]
[1721255727801,21.27788398,156.42,156.37,15.9867]
[1721255728007,21.27788398,156.42,156.37,22.3816]
[1721255728419,21.27788398,156.42,156.38,6.3945]
[1721255728910,21.27788398,156.42,156.37,15.9867]
[1721255728911,27.67098398,156.42,156.37,15.9867]
[1721255729111,6.3934,156.41,156.37,15.9867]
[1721255729326,1.27788398,156.4,156.37,15.9867]
[1721255730315,21.27788398,156.4,156.37,15.9867]
[1721255730809,21.27788398,156.4,156.34,1.27896111]
[1721255730810,1.27788398,156.39,156.35,6.3958]
[1721255731011,1.27788398,156.39,156.34,15.9907]
[1721255731315,6.3951,156.37,156.31,22.3908]
[1721255731522,7.67338398,156.36,156.31,15.9937]
[1721255731734,6.3968,156.33,156.28,22.3952]
[1721255731918,1.27788398,156.34,156.28,15.9968]
[1721255732118,1.27788398,156.34,156.31,15.9937]
[1721255732530,1.27788398,156.34,156.29,6.3979]
[1721255732531,1.27788398,156.34,156.29,1.27943783]
[1721255732832,7.67448398,156.34,156.28,22.395]
[1721255733028,20.0,156.33,156.29,1.2795268]
[1721255733251,20.0,156.35,156.31,6.3975]
[1721255733410,1.27788398,156.34,156.29,1.27943425]
[1721255733617,1.27788398,156.34,156.28,22.3954]
[1721255734536,6.3967,156.33,156.28,22.3954]
[1721255734744,21.27788398,156.32,156.28,22.3954]
[1721255735342,1.27788398,156.32,156.28,22.3954]
[1721255735522,20.0,156.33,156.29,7.67783327]
[1721255735728,20.0,156.33,156.28,15.9967]
[1721255735729,1.27788398,156.32,156.3,6.3979]
[1721255735923,1.27788398,156.33,156.3,6.3979]
[1721255736129,7.84489323,156.33,156.28,22.3951]
[1721255736326,21.27788398,156.32,156.28,22.3951]
[1721255736935,21.27788398,156.32,156.27,0.7990628]
[1721255737249,27.67508398,156.32,156.27,7.1980628]
[1721255737451,21.27788398,156.32,156.27,7.1980628]
[1721255737744,21.27788398,156.32,156.27,0.7990628]
[1721255737923,6.3975,156.31,156.27,0.7990628]
[1721255738124,21.27788398,156.3,156.27,0.7990628]
[1721255738320,1.27788398,156.29,156.27,0.7990628]
[1721255738639,7.67538398,156.31,156.27,0.7990628]
[1721255738843,20.0,156.3,156.27,0.7990628]
[1721255739047,1.27788398,156.29,156.27,0.7990628]
[1721255739344,21.27788398,156.3,156.27,0.7990628]
[1721255739536,21.27788398,156.3,156.27,7.1981628]
[1721255739735,21.27788398,156.3,156.28,6.3987]
[1721255739926,1.27788398,156.29,156.27,0.7990628]
[1721255740127,1.27788398,156.31,156.27,0.7990628]
[1721255740637,7.67578398,156.31,156.27,0.7990628]
[1721255740954,20.0,156.3,156.27,0.7990628]
[1721255741158,1.27788398,156.29,156.27,0.7990628]
[1721255742140,1.27788398,156.28,156.27,0.7990628]
[1721255742345,7.67658398,156.28,156.27,0.7990628]
[1721255742535,21.27788398,156.28,156.27,0.7990628]
[1721255743140,36.02930925,156.33,156.28,6.3986]
[1721255743345,6.3977,156.31,156.27,0.7990628]
[1721255743542,21.27788398,156.3,156.27,0.7990628]
[1721255743731,1.27788398,156.29,156.27,0.7990628]
[1721255744157,6.3987,156.28,156.27,0.7990628]
[1721255744365,26.3987,156.28,156.27,0.7990628]
[1721255744856,109.7554,156.28,156.27,0.7990628]
[1721255745152,93.7585,156.28,156.27,0.7990628]
[1721255746059,42.3598,156.28,156.27,0.7990628]
[1721255746249,15.1816,156.32,156.27,0.7990628]
[1721255746562,1.27788398,156.31,156.27,7.1980628]
[1721255746734,1.27788398,156.31,156.27,16.7959628]
[1721255746933,1.27788398,156.31,156.28,6.3986]
[1721255747134,15.1816,156.32,156.27,16.7959628]
[1721255747135,1.27788398,156.32,156.27,16.7959628]
[1721255747455,7.67538398,156.31,156.27,0.7990628]
[1721255748162,6.3984,156.29,156.27,0.7990628]
[1721255748331,1.27788398,156.28,156.27,0.7990628]
[1721255748844,6.3983,156.29,156.27,0.7990628]
[1721255749045,21.27788398,156.28,156.27,0.7990628]
[1721255749247,20.0,156.28,156.27,0.7990628]
[1721255749552,1.27788398,156.32,156.27,0.7990628]
[1721255749753,1.27788398,156.32,156.3,6.3975]
[1721255749953,1.27788398,156.32,156.29,6.3982]
[1721255750264,6.3987,156.28,156.27,0.7990628]
[1721255750767,6.3986,156.29,156.27,0.7990628]
[1721255751065,20.0,156.33,156.27,0.7990628]
[1721255751066,21.27788398,156.28,156.27,0.7990628]
[1721255751240,20.0,156.28,156.27,0.7990628]
[1721255754785,26.3987,156.28,156.27,0.7990628]
[1721255754960,1.27788398,156.3,156.27,0.7990628]
[1721255755276,6.3976,156.31,156.27,0.7990628]
[1721255755487,6.58177274,156.34,156.27,0.7990628]
[1721255755488,1.27788398,156.3,156.27,0.7990628]
[1721255755653,6.398,156.3,156.27,0.7990628]
[1721255755853,1.27788398,156.29,156.27,0.7990628]
[1721255756058,1.27788398,156.33,156.27,0.7990628]
[1721255756268,1.27788398,156.32,156.27,7.1978628]
[1721255756581,21.27788398,156.32,156.27,7.1978628]
[1721255756954,6.3977,156.31,156.27,0.7990628]
[1721255757156,21.27788398,156.3,156.27,0.7990628]
[1721255757458,1.27788398,156.29,156.27,0.7990628]
[1721255757648,21.27788398,156.29,156.27,0.7990628]
[1721255758058,20.0,156.29,156.27,0.7990628]
[1721255758268,20.0,156.31,156.27,0.7990628]
[1721255758477,21.27788398,156.31,156.27,0.7990628]
[1721255758780,21.27788398,156.31,156.27,7.1978628]
[1721255758958,1.27788398,156.31,156.27,7.1978628]
[1721255759158,1.27788398,156.31,156.27,0.7990628]
[1721255759565,1.27788398,156.31,156.27,7.1979628]
[1721255759777,1.27788398,156.31,156.27,16.7962628]
[1721255759965,6.3968,156.33,156.28,6.3986]
[1721255760160,1.27788398,156.32,156.28,6.3986]
[1721255760557,7.67508398,156.32,156.27,16.7962628]
[1721255760972,7.67508398,156.32,156.27,23.1952628]
[1721255761179,21.27788398,156.31,156.27,23.1952628]
[1721255761558,21.27788398,156.31,156.27,16.7962628]
[1721255761758,21.27788398,156.34,156.27,16.7962628]
[1721255763296,21.27788398,156.34,156.27,23.1952628]
[1721255763581,21.27788398,156.34,156.28,6.3986]
[1721255763582,27.67418398,156.34,156.28,6.3986]
[1721255763770,6.3968,156.33,156.27,23.1952628]
[1721255763967,27.67508398,156.32,156.27,23.1952628]
[1721255764268,7.67508398,156.32,156.27,16.7962628]
[1721255764470,20.0,156.31,156.27,0.7990628]
[1721255764676,15.4307,156.29,156.27,0.7990628]
[1721255764877,21.27788398,156.28,156.27,0.7990628]
[1721255765063,66.27788398,156.28,156.27,0.7990628]
[1721255765262,72.67658398,156.28,156.27,0.7990628]
[1721255765680,27.67658398,156.28,156.27,0.7990628]
[1721255765986,72.67658398,156.28,156.27,0.7990628]
[1721255766364,27.67658398,156.28,156.27,0.7990628]
[1721255766780,72.67658398,156.28,156.27,0.7990628]
[1721255767280,27.67658398,156.28,156.27,0.7990628]
[1721255767480,72.67658398,156.28,156.27,0.7990628]
[1721255767859,88.67348398,156.28,156.27,0.7990628]
[1721255768482,88.67348398,156.28,156.18,16.0067]
[1721255768483,6.4008,156.23,156.18,16.0067]
[1721255768678,21.27788398,156.22,156.18,22.4094]
[1721255769185,1.27788398,156.21,156.18,16.0067]
[1721255769380,21.27788398,156.27,156.18,16.0067]
[1721255769560,6.4,156.25,156.19,6.4024]
[1721255769759,21.27788398,156.24,156.2,6.4019]
[1721255769986,1.27788398,156.23,156.19,6.4024]
[1721255770776,1.27788398,156.23,156.18,16.0067]
[1721255770974,7.67898398,156.23,156.18,16.0067]
[1721255771184,20.0,156.22,156.18,16.0067]
[1721255771371,1.27788398,156.23,156.18,16.0067]
[1721255771569,20.0,156.24,156.2,16.0042]
[1721255771776,20.0,156.24,156.21,1.28018238]
[1721255772169,7.83224347,156.27,156.22,1.28018269]
[1721255772382,1.27788398,156.32,156.24,6.4]
[1721255772694,6.3991,156.27,156.19,38.3428]
[1721255772984,6.4001,156.25,156.19,6.3315]
[1721255773171,1.27788398,156.24,156.18,31.1884]
[1721255773372,1.27788398,156.23,156.18,37.5912]
[1721255773774,21.27788398,156.23,156.19,6.4022]
[1721255773976,21.27788398,156.23,156.2,6.4019]
[1721255774178,21.27788398,156.23,156.18,37.5909]
[1721255774371,21.27788398,156.22,156.19,6.4022]
[1721255774683,1.27788398,156.22,156.2,6.402]
[1721255774899,21.27788398,156.24,156.21,6.4016]
[1721255775385,21.27788398,156.23,156.2,16.0044]
[1721255775570,1.27788398,156.23,156.2,16.0044]
[1721255776477,1.27788398,156.22,156.18,15.1816]
[1721255776799,1.27788398,156.24,156.18,15.1816]
[1721255776966,1.27788398,156.23,156.18,15.1816]
[1721255777402,1.27788398,156.23,156.18,21.5842]
[1721255777609,21.27788398,156.23,156.18,21.5842]
[1721255777978,21.27788398,156.23,156.19,6.4024]
[1721255778325,21.27788398,156.22,156.19,6.4024]
[1721255778502,1.27788398,156.22,156.19,6.4024]
[1721255778999,21.27788398,156.24,156.19,17.28557119]
[1721255779199,21.27788398,156.26,156.19,17.28557119]
[1721255779364,21.27788398,156.26,156.21,16.0033]
[1721255779566,21.27788398,156.26,156.22,6.4011]
[1721255779767,1.27788398,156.26,156.22,6.4011]
[1721255780069,1.27788398,156.27,156.23,6.4007]
[1721255780577,1.27788398,156.26,156.22,6.4011]
[1721255780778,1.27788398,156.27,156.22,7.68116877]
[1721255780975,1.27788398,156.26,156.21,22.4048]
[1721255781296,1.27788398,156.26,156.2,6.4019]
[1721255781607,1.27788398,156.26,156.18,31.1883]
[1721255781770,6.4009,156.23,156.18,21.5844]
[1721255781970,1.27788398,156.22,156.18,21.5844]
[1721255782169,1.27788398,156.22,156.15,22.65]
[1721255782383,6.4017,156.21,156.15,29.0538]
[1721255782597,21.27788398,156.2,156.16,6.4033]
[1721255782901,20.0,156.19,156.17,6.4032]
[1721255783092,1.27788398,156.22,156.17,6.4032]
[1721255783274,7.67908398,156.22,156.16,6.4036]
[1721255783474,20.0,156.21,156.16,6.4036]
[1721255783727,1.27788398,156.2,156.17,6.4031]
[1721255784517,1.27788398,156.2,156.16,6.4036]
[1721255784677,1.27788398,156.21,156.16,6.4036]
[1721255784987,1.27788398,156.21,156.17,6.4032]
[1721255785182,1.27788398,156.2,156.17,6.4032]
[1721255785391,1.27788398,156.2,156.16,6.4035]
[1721255785590,21.27788398,156.2,156.15,22.414]
[1721255785792,27.68008398,156.2,156.15,16.01]
[1721255785990,7.68028398,156.19,156.14,21.7136]
[1721255786187,1.27788398,156.19,156.14,21.7136]
[1721255787116,1.27788398,156.19,156.15,7.68459833]
[1721255787280,1.27788398,156.19,156.15,1.28069833]
[1721255787480,1.27788398,156.19,156.16,6.4036]
[1721255787680,1.27788398,156.19,156.15,6.404]
[1721255788104,1.27788398,156.19,156.15,7.68468042]
[1721255788695,1.27788398,156.19,156.15,6.404]
[1721255789279,20.0,156.2,156.17,6.4031]
[1721255789599,20.0,156.21,156.16,16.0082]
[1721255789903,1.27788398,156.21,156.18,6.4028]
[1721255790102,27.67868398,156.23,156.17,6.4031]
[1721255790307,26.4013,156.22,156.16,16.0082]
[1721255790487,7.67948398,156.21,156.16,16.0082]
[1721255790689,27.68008398,156.2,156.13,16.0122]
[1721255790997,27.68008398,156.2,156.13,17.29293203]
[1721255791401,6.4025,156.19,156.13,17.29293203]
[1721255791585,1.27788398,156.18,156.13,22.417]
[1721255791786,21.27788398,156.18,156.14,6.4045]
[1721255792202,21.27788398,156.18,156.15,6.404]
[1721255792581,1.27788398,156.18,156.15,6.404]
[1721255792992,1.27788398,156.19,156.15,6.404]
[1721255793501,6.56036594,156.23,156.18,6.4026]
[1721255793704,1.27788398,156.24,156.2,6.4016]
[1721255793894,1.27788398,156.25,156.24,6.4004]
[1721255794100,1.27788398,156.25,156.22,6.4008]
[1721255794295,1.27788398,156.26,156.23,6.4007]
[1721255794488,1.27788398,156.26,156.22,1.28017494]
[1721255794684,1.27788398,156.26,156.18,16.0069]
[1721255794888,1.27788398,156.26,156.2,6.4016]
[1721255795091,7.67748398,156.26,156.2,6.4016]
[1721255795304,20.0,156.25,156.15,25.8118]
[1721255795581,1.27788398,156.27,156.23,6.4007]
[1721255795787,1.27788398,156.26,156.23,6.4007]
[1721255795979,12.95667513,156.28,156.25,6.3999]
[1721255795980,1.27788398,156.28,156.25,6.3999]
[1721255796195,1.27788398,156.29,156.24,16.0002]
[1721255796406,1.27788398,156.29,156.2,16.0041]
[1721255796618,6.3996,156.26,156.21,6.4016]
[1721255796907,1.27788398,156.29,156.22,16.0022]
[1721255797288,7.67638398,156.29,156.24,6.4003]
[1721255797617,6.3993,156.27,156.22,16.0022]
[1721255797904,1.27788398,156.26,156.22,16.0022]
[1721255798304,21.27788398,156.26,156.22,16.0022]
[1721255798495,21.27788398,156.26,156.22,22.4033]
[1721255798884,27.67758398,156.26,156.2,6.4016]
[1721255799086,1.27788398,156.25,156.2,6.4016]
[1721255799285,7.67788398,156.25,156.2,6.4016]
[1721255799585,20.0,156.24,156.19,22.4081]
[1721255799796,1.27788398,156.23,156.2,6.4018]
[1721255802320,1.27788398,156.23,156.21,6.4015]
[1721255802490,1.27788398,156.24,156.21,6.4015]
[1721255802909,1.27788398,156.23,156.21,6.4015]
[1721255803110,20.0,156.25,156.19,16.0058]
[1721255803412,20.0,156.26,156.21,6.4012]
[1721255803614,1.27788398,156.25,156.21,16.0034]
[1721255803795,1.27788398,156.3,156.25,6.3997]
[1721255804000,1.27788398,156.29,156.25,6.3997]
[1721255804201,1.27788398,156.3,156.28,6.3984]
[1721255804394,1.27788398,156.3,156.27,22.3961]
[1721255804594,1.27788398,156.31,156.27,22.3961]
[1721255804801,1.27788398,156.32,156.27,15.9971]